fUST/lending_fUST_20240803
["ID","MTS","AMOUNT","RATE_DAILY","PERIOD"]
[333978504,1722661846212,-500.0,0.00013698,2]
[333978506,1722661846224,-506.72900474,0.00013698,2]
[333978508,1722661846234,-500.0,0.00013698,2]
[333978510,1722661846245,-500.0,0.00013698,2]
[333978512,1722661846255,-500.0,0.00013698,2]
[333978513,1722661846266,-500.0,0.00013698,2]
[333978515,1722661846277,-500.0,0.00013698,2]
[333978517,1722661846288,-506.96171622,0.00013698,2]
[333978519,1722661846299,-501.20184379,0.00013698,2]
[333978521,1722661846310,-500.0,0.00013698,2]
[333978523,1722661846321,-500.0,0.00013698,2]
[333978524,1722661846331,-501.51688979,0.00013698,2]
[333978526,1722661846341,-807.52,0.00013698,2]
[333978528,1722661846351,-500.0,0.00013698,2]
[333978530,1722661846362,-504.80325072,0.00013698,2]
[333978531,1722661846372,-500.0,0.00013698,2]
[333978532,1722661846382,-500.0,0.00013698,2]
[333978533,1722661846392,-500.0,0.00013698,2]
[333978534,1722661846401,-506.11215054,0.00013698,2]
[333978535,1722661846412,-500.0,0.00013698,2]
[333978536,1722661846422,-1450.74,0.00013698,2]
[333978537,1722661846432,-500.0,0.00013698,2]
[333978538,1722661846442,-500.0,0.00013698,2]
[333978540,1722661846453,-500.0,0.00013698,2]
[333978542,1722661846464,-500.0,0.00013698,2]
[333978543,1722661846473,-500.0,0.00013698,2]
[333978544,1722661846482,-1377.5,0.00013698,2]
[333978545,1722661846491,-500.0,0.00013698,2]
[333978546,1722661846500,-500.0,0.00013698,2]
[333978547,1722661846510,-807.69,0.00013698,2]
[333978548,1722661846520,-807.69,0.00013698,2]
[333978549,1722661846530,-807.69,0.00013698,2]
[333978550,1722661846541,-503.41638704,0.00013698,2]
[333978551,1722661846553,-807.69,0.00013698,2]
[333978552,1722661846563,-329.04185234,0.00013698,2]
[333978553,1722661846573,-807.69,0.00013698,2]
[333978554,1722661846583,-807.69,0.00013698,2]
[333978555,1722661846593,-807.69,0.00013698,2]
[333978556,1722661846604,-5319.78,0.00013698,2]
[333978557,1722661846613,-1223.99,0.00013698,2]
[333978558,1722661846625,-500.0,0.00013698,2]
[333978559,1722661846636,-503.16626666,0.00013698,2]
[333978560,1722661846647,-500.0,0.00013698,2]
[333978561,1722661846658,-701.71,0.00013698,2]
[333978562,1722661846668,-500.0,0.00013698,2]
[333978563,1722661846678,-500.0,0.00013698,2]
[333978564,1722661846688,-500.0,0.00013698,2]
[333978565,1722661846698,-501.04256428,0.00013698,2]
[333978566,1722661846708,-270.14990032,0.00013698,2]
[333978567,1722661846719,-500.0,0.00013698,2]
[333978568,1722661846729,-847.5,0.00013698,2]
[333978569,1722661846740,-500.0,0.00013698,2]
[333978570,1722661846751,-500.0,0.00013698,2]
[333978571,1722661846762,-500.0,0.00013698,2]
[333978572,1722661846772,-1145.48,0.00013698,2]
[333978573,1722661846781,-447.4714438,0.00013698,2]
[333978574,1722661846790,-500.0,0.00013698,2]
[333978575,1722661846800,-500.0,0.00013698,2]
[333978576,1722661846812,-500.0,0.00013698,2]
[333978577,1722661846823,-500.0,0.00013698,2]
[333978578,1722661846834,-613.44,0.00013698,2]
[333978579,1722661846843,-500.0,0.00013698,2]
[333978580,1722661846854,-500.0,0.00013698,2]
[333978581,1722661846863,-616.41,0.00013698,2]
[333978582,1722661846872,-653.23,0.00013698,2]
[333978583,1722661846881,-500.0,0.00013698,2]
[333978584,1722661846893,-502.5143802,0.00013698,2]
[333978585,1722661846904,-500.0,0.00013698,2]
[333978586,1722661846914,-1839.81,0.00013698,2]
[333978587,1722661846924,-505.48610624,0.00013698,2]
[333978588,1722661846933,-506.40803206,0.00013698,2]
[333978589,1722661846943,-500.0,0.00013698,2]
[333978590,1722661846952,-499.527585,0.00013699,2]
[333978591,1722661846962,-2790.3473186,0.00013699,2]
[333978592,1722661846971,-218.23065649,0.00013699,2]
[333978593,1722661846980,-150.112233,0.000137,2]
[333978594,1722661846990,-224.77737103,0.00013735,2]
[333978595,1722661846999,-4555.12765706,0.00013738,2]
[333978596,1722661847009,-306.0,0.000138,2]
[333978597,1722661847018,-224.77737103,0.00013804,2]
[333978598,1722661847027,-224.77737103,0.00013872,2]
[333978599,1722661847037,-1280.56585644,0.00013872,2]
[333978600,1722661847046,-2000.0,0.00013872,2]
[333978601,1722661847055,-193.06141054,0.00013951,2]
[333978602,1722661847064,-204.11846312,0.00013951,2]
[333978603,1722661847074,-500.0,0.00013951,2]
[333978604,1722661847084,-267.42106253,0.00013951,2]
[333978605,1722661847093,-500.0,0.00013951,2]
[333978606,1722661847102,-500.0,0.00013951,2]
[333978607,1722661847112,-500.0,0.00013951,2]
[333978608,1722661847121,-500.0,0.00013951,2]
[333978609,1722661847131,-500.0,0.00013951,2]
[333978610,1722661847144,-500.0,0.00013951,2]
[333978611,1722661847153,-32823.75259489,0.00013952,2]
[333978612,1722661847299,-346.385708,0.00013952,2]
[333978613,1722661847315,-3079.82492043,0.00013952,2]
[333978614,1722661847327,-6961.26306418,0.00013952,2]
[333978615,1722661847337,-550.67717887,0.00013961,2]
[333978616,1722661847346,-617.12,0.00013961,2]
[333978617,1722661847356,-500.0,0.00013961,2]
[333978618,1722661847365,-807.69,0.00013961,2]
[333978619,1722661847375,-807.69,0.00013961,2]
[333978620,1722661847384,-64816.8394313,0.00013962,2]
[333978621,1722661847393,-15075.98639706,0.00013971,5]
[333978622,1722661847403,-617.12,0.00013971,2]
[333978623,1722661847412,-500.0,0.00013971,2]
[333978624,1722661847421,-522.63178246,0.00013971,2]
[333978625,1722661847431,-807.69,0.00013971,2]
[333978626,1722661847441,-807.69,0.00013971,2]
[333978627,1722661847451,-807.69,0.00013971,2]
[333978628,1722661847461,-500.0,0.00013972,2]
[333978629,1722661847470,-500.0,0.00013972,2]
[333978630,1722661847480,-500.0,0.00013972,2]
[333978631,1722661847489,-500.0,0.00013972,2]
[333978632,1722661847499,-500.0,0.00013972,2]
[333978633,1722661847508,-507.95,0.00013972,2]
[333978634,1722661847518,-510.99316904,0.00013972,2]
[333978635,1722661847527,-500.0,0.00013972,2]
[333978636,1722661847536,-505.86465431,0.00013972,2]
[333978637,1722661847545,-568.97915997,0.00013972,2]
[333978638,1722661847555,-500.0,0.00013972,2]
[333978639,1722661847564,-500.0,0.00013972,2]
[333978640,1722661847573,-505.63,0.00013972,2]
[333978641,1722661847583,-500.0,0.00013972,2]
[333978642,1722661847592,-500.0,0.00013972,2]
[333978643,1722661847602,-500.0,0.00013972,2]
[333978644,1722661847612,-723.96,0.00013972,2]
[333978645,1722661847621,-499.88039172,0.00013972,2]
[333978646,1722661847631,-1282.8,0.00013972,2]
[333978647,1722661847641,-500.0,0.00013972,2]
[333978648,1722661847650,-505.01305,0.00013972,2]
[333978649,1722661847659,-500.0,0.00013972,2]
[333978650,1722661847669,-500.0,0.00013972,2]
[333978651,1722661847679,-500.0,0.00013972,2]
[333978652,1722661847690,-510.4138721,0.00013972,2]
[333978653,1722661847699,-512.63214859,0.00013972,2]
[333978654,1722661847709,-500.0,0.00013972,2]
[333978655,1722661847718,-500.89821885,0.00013972,2]
[333978656,1722661847728,-502.93711622,0.00013972,2]
[333978657,1722661847738,-500.0,0.00013972,2]
[333978658,1722661847747,-500.0,0.00013972,2]
[333978659,1722661847760,-467.35364598,0.00013972,2]
[333978660,1722661847771,-563.55095277,0.00013972,2]
[333978661,1722661847780,-500.0,0.00013972,2]
[333978662,1722661847790,-500.0,0.00013972,2]
[333978663,1722661847799,-520.88,0.00013972,2]
[333978664,1722661847809,-504.80382824,0.00013972,2]
[333978665,1722661847818,-505.81869236,0.00013972,2]
[333978666,1722661847827,-500.0,0.00013972,2]
[333978667,1722661847836,-500.0,0.00013972,2]
[333978668,1722661847845,-500.0,0.00013972,2]
[333978669,1722661847855,-500.0,0.00013972,2]
[333978670,1722661847864,-500.0,0.00013972,2]
[333978671,1722661847873,-500.0,0.00013972,2]
[333978672,1722661847883,-503.23975874,0.00013972,2]
[333978673,1722661847892,-500.0,0.00013972,2]
[333978674,1722661847901,-500.0,0.00013972,2]
[333978675,1722661847911,-500.0,0.00013972,2]
[333978676,1722661847920,-151.0,0.00013972,2]
[333978677,1722661847929,-500.0,0.00013972,2]
[333978678,1722661848020,-500.0,0.00013972,2]
[333978679,1722661848030,-503.13016951,0.00013972,2]
[333978680,1722661848040,-500.0,0.00013972,2]
[333978681,1722661848050,-500.0,0.00013972,2]
[333978682,1722661848060,-509.7775387,0.00013972,2]
[333978683,1722661848071,-500.0,0.00013972,2]
[333978684,1722661848081,-500.0,0.00013972,2]
[333978685,1722661848090,-500.0,0.00013972,2]
[333978686,1722661848099,-500.0,0.00013972,2]
[333978687,1722661848109,-500.0,0.00013972,2]
[333978688,1722661848118,-500.0,0.00013972,2]
[333978689,1722661848127,-512.74845503,0.00013972,2]
[333978690,1722661848137,-380.17617847,0.00013972,2]
[333978691,1722661848151,-500.0,0.00013972,2]
[333978692,1722661848161,-642.21,0.00013972,2]
[333978693,1722661848177,-152.402326,0.00013972,2]
[333978694,1722661848192,-500.0,0.00013972,2]
[333978695,1722661848203,-160.802949,0.00013972,2]
[333978696,1722661848214,-151.0,0.00013972,2]
[333978697,1722661848227,-160.802949,0.00013972,2]
[333978698,1722661848237,-500.0,0.00013972,2]
[333978699,1722661848247,-151.0,0.00013972,2]
[333978700,1722661848257,-500.0,0.00013972,2]
[333978701,1722661848269,-500.0,0.00013972,2]
[333978702,1722661848280,-500.0,0.00013972,2]
[333978703,1722661848290,-868.67,0.00013972,2]
[333978704,1722661848301,-151.0,0.00013972,2]
[333978705,1722661848311,-509.16746057,0.00013972,2]
[333978706,1722661848321,-500.0,0.00013972,2]
[333978707,1722661848331,-509.07927977,0.00013972,2]
[333978708,1722661848341,-504.7353203,0.00013972,2]
[333978709,1722661848351,-500.0,0.00013972,2]
[333978710,1722661848361,-500.0,0.00013972,2]
[333978711,1722661848372,-500.0,0.00013972,2]
[333978712,1722661848382,-500.0,0.00013972,2]
[333978713,1722661848392,-507.8061347,0.00013972,2]
[333978714,1722661848402,-4095.80269198,0.00013972,2]
[333978715,1722661848484,-2875.32730802,0.00013972,2]
[333978716,1722661848495,-379.32437585,0.00013972,2]
[333978737,1722662866240,675.28808026,9.999e-05,2]
[333978838,1722663038257,-557.36,0.00010959,2]
[333978839,1722663038268,-167.271457,0.00012375,2]
[333978840,1722663038279,-167.271457,0.00012425,2]
[333978841,1722663038290,-167.271457,0.00012474,2]
[333978842,1722663038301,-167.271457,0.00012524,2]
[333978843,1722663038311,-167.271457,0.00012573,2]
[333978844,1722663038324,-167.271457,0.00012623,2]
[333978845,1722663038334,-167.271457,0.00012673,2]
[333978846,1722663038345,-167.271457,0.00012722,2]
[333978847,1722663038355,-167.271457,0.00012772,2]
[333978848,1722663038366,-167.271457,0.00012822,2]
[333978849,1722663038377,-167.271457,0.00012871,2]
[333978850,1722663038386,-167.271457,0.00012921,2]
[333978851,1722663038398,-167.271457,0.0001297,2]
[333978852,1722663038408,-169.347554,0.00012986,2]
[333978853,1722663038419,-1697.0397982,0.00013,2]
[333978854,1722663038962,-3401.06619762,0.00013,2]
[333978856,1722663038974,-1314.89433094,0.00013,2]
[333978858,1722663038984,-167.271457,0.0001302,2]
[333978859,1722663038994,-300.0,0.00013595,2]
[333978860,1722663039006,-1859.42485892,0.00013598,2]
[333978861,1722663039015,-200.0,0.00013673,2]
[333978862,1722663039025,-4400.60936814,0.00013688,2]
[333978883,1722663040297,-22766.03716366,0.00013688,2]
[333978884,1722663040308,-514.26,0.00013697,2]
[333978885,1722663040318,-514.26,0.00013697,2]
[333978886,1722663040328,-500.0,0.00013698,2]
[333978887,1722663040338,-500.71650985,0.00013698,2]
[333978888,1722663040350,-500.0,0.00013698,2]
[333978889,1722663040362,-663.63,0.00013698,2]
[333978890,1722663040372,-500.0,0.00013698,2]
[333978891,1722663040384,-500.0,0.00013698,2]
[333978892,1722663040394,-345.54163527,0.00013698,2]
[333978893,1722663040403,-500.0,0.00013698,2]
[333978894,1722663040414,-500.0,0.00013698,2]
[333978895,1722663040425,-214.4865471,0.00013698,2]
[333978896,1722663040440,-506.27259331,0.00013698,2]
[333978897,1722663040452,-509.93525858,0.00013698,2]
[333978899,1722663040465,-500.0,0.00013698,2]
[333978901,1722663040476,-500.0,0.00013698,2]
[333978903,1722663040487,-503.3226659,0.00013698,2]
[333978906,1722663040498,-501.99856816,0.00013698,2]
[333978908,1722663040515,-500.0,0.00013698,2]
[333978910,1722663040526,-500.0,0.00013698,2]
[333978912,1722663040535,-500.0,0.00013698,2]
[333978914,1722663040547,-500.0,0.00013698,2]
[333978916,1722663040558,-502.33360217,0.00013698,2]
[333978918,1722663040568,-500.0,0.00013698,2]
[333978920,1722663040579,-500.0,0.00013698,2]
[333978921,1722663040590,-500.0,0.00013698,2]
[333978923,1722663040601,-500.0,0.00013698,2]
[333978925,1722663040611,-500.0,0.00013698,2]
[333978926,1722663040620,-500.0,0.00013698,2]
[333978927,1722663040630,-1175.9,0.00013698,2]
[333978928,1722663040639,-500.0,0.00013698,2]
[333978929,1722663040649,-500.0,0.00013698,2]
[333978931,1722663040658,-500.0,0.00013698,2]
[333978932,1722663040669,-506.63878692,0.00013698,2]
[333978933,1722663040679,-500.0,0.00013698,2]
[333978934,1722663040688,-678.25,0.00013698,2]
[333978935,1722663040698,-510.58492042,0.00013698,2]
[333978936,1722663040708,-511.53337306,0.00013698,2]
[333978937,1722663040718,-500.0,0.00013698,2]
[333978938,1722663040730,-500.0,0.00013698,2]
[333978939,1722663040739,-500.0,0.00013698,2]
[333978940,1722663040751,-503.76721399,0.00013698,2]
[333978941,1722663040762,-165.58512264,0.00013698,2]
[333978942,1722663040771,-383.91975074,0.00013698,2]
[333978943,1722663040780,-502.71584197,0.00013698,2]
[333978944,1722663040790,-396.68156048,0.00013698,2]
[333978945,1722663040799,-506.66305378,0.00013698,2]
[333978946,1722663040810,-504.37487459,0.00013698,2]
[333978947,1722663040821,-501.89706402,0.00013698,2]
[333978948,1722663040831,-500.0,0.00013698,2]
[333978949,1722663040843,-500.0,0.00013698,2]
[333978950,1722663040853,-500.0,0.00013698,2]
[333978951,1722663040865,-435.11155311,0.00013698,2]
[333978952,1722663040875,-500.0,0.00013698,2]
[333978953,1722663040887,-500.0,0.00013698,2]
[333978954,1722663040897,-622.77999655,0.00013698,2]
[333978955,1722663040907,-500.0,0.00013698,2]
[333978956,1722663040917,-500.0,0.00013698,2]
[333978957,1722663040927,-500.0,0.00013698,2]
[333978958,1722663040940,-500.0,0.00013698,2]
[333978959,1722663040950,-500.0,0.00013698,2]
[333978960,1722663040962,-500.0,0.00013698,2]
[333978961,1722663040973,-504.39035449,0.00013698,2]
[333978962,1722663040984,-500.0,0.00013698,2]
[333978963,1722663040995,-500.0,0.00013698,2]
[333978964,1722663041005,-504.00307471,0.00013698,2]
[333978965,1722663041015,-329.04185234,0.00013698,2]
[333978966,1722663041025,-614.26,0.00013698,2]
[333978967,1722663041034,-500.0,0.00013698,2]
[333978968,1722663041045,-171.1109754,0.00013698,2]
[333978969,1722663041055,-527.01426264,0.00013698,2]
[333978970,1722663041066,-500.0,0.00013698,2]
[333978971,1722663041078,-796.28,0.00013698,2]
[333978972,1722663041088,-512.26244408,0.00013698,2]
[333978973,1722663041100,-483.35965759,0.00013698,2]
[333978974,1722663041111,-500.0,0.00013698,2]
[333978975,1722663041121,-500.0,0.00013698,2]
[333978976,1722663041131,-500.0,0.00013698,2]
[333978977,1722663041140,-309.17647512,0.00013698,2]
[333978978,1722663041150,-500.0,0.00013698,2]
[333978979,1722663041159,-500.0,0.00013698,2]
[333978980,1722663041268,-500.0,0.00013698,2]
[333978981,1722663041277,-500.0,0.00013698,2]
[333978982,1722663041286,-447.4714438,0.00013698,2]
[333978983,1722663041295,-500.0,0.00013698,2]
[333978984,1722663041304,-500.0,0.00013698,2]
[333978985,1722663041313,-500.0,0.00013698,2]
[333978986,1722663041323,-500.0,0.00013698,2]
[333978987,1722663041332,-500.0,0.00013698,2]
[333978988,1722663041342,-500.0,0.00013698,2]
[333978989,1722663041352,-273.17894821,0.00013698,2]
[333978990,1722663041361,-500.0,0.00013698,2]
[333978991,1722663041371,-504.66145901,0.00013698,2]
[333978992,1722663041380,-510.95714034,0.00013698,2]
[333978993,1722663041389,-500.0,0.00013698,2]
[333978994,1722663041399,-502.93646616,0.00013698,2]
[333978995,1722663041408,-6806.2,0.00013698,2]
[333978996,1722663041417,-260.10408505,0.00013698,2]
[333978997,1722663041426,-712.1,0.00013698,2]
[333978998,1722663041435,-500.0,0.00013698,2]
[333978999,1722663041445,-1239.26,0.00013698,2]
[333979000,1722663041454,-500.0,0.00013698,2]
[333979001,1722663041463,-500.0,0.00013698,2]
[333979002,1722663041472,-504.06182591,0.00013698,2]
[333979003,1722663041481,-2774.93,0.00013698,2]
[333979004,1722663041490,-1851.84,0.00013698,2]
[333979005,1722663041500,-501.04256428,0.00013698,2]
[333979006,1722663041515,-500.0,0.00013698,2]
[333979007,1722663041526,-500.0,0.00013698,2]
[333979008,1722663041535,-543.03,0.00013698,2]
[333979009,1722663041545,-500.0,0.00013698,2]
[333979010,1722663041555,-500.0,0.00013698,2]
[333979011,1722663041564,-506.99454715,0.00013698,2]
[333979012,1722663041573,-500.0,0.00013698,2]
[333979013,1722663041584,-1083.37,0.00013698,2]
[333979014,1722663041594,-500.0,0.00013698,2]
[333979015,1722663041604,-504.33822417,0.00013698,2]
[333979016,1722663041614,-501.10533179,0.00013698,2]
[333979017,1722663041624,-958.56,0.00013698,2]
[333979018,1722663041634,-555.28703829,0.00013698,2]
[333979019,1722663041644,-506.12023889,0.00013698,2]
[333979020,1722663041655,-500.0,0.00013698,2]
[333979021,1722663041666,-500.0,0.00013698,2]
[333979022,1722663041676,-2836.74267381,0.00013698,2]
[333979023,1722663041691,-577.92732619,0.00013698,2]
[333979024,1722663041703,-531.9133284,0.00013698,2]
[333979025,1722663041712,-500.0,0.00013698,2]
[333979026,1722663041722,-591.93,0.00013698,2]
[333979027,1722663041733,-732.22,0.00013698,2]
[333979028,1722663041755,-500.0,0.00013698,2]
[333979029,1722663041772,-500.0,0.00013698,2]
[333979030,1722663041782,-39.60990247,0.00013698,2]
[333979031,1722663041795,-460.39009753,0.00013698,2]
[333979032,1722663041805,-428.61092149,0.00013698,2]
[333979069,1722663046464,-1249.45907851,0.00013698,2]
[333979070,1722663046474,-500.0,0.00013698,2]
[333979071,1722663046484,-504.64374314,0.00013698,2]
[333979072,1722663046494,-734.33,0.00013698,2]
[333979073,1722663046505,-500.0,0.00013698,2]
[333979074,1722663046521,-500.0,0.00013698,2]
[333979075,1722663046532,-769.27,0.00013698,2]
[333979076,1722663046542,-500.0,0.00013698,2]
[333979077,1722663046552,-200.34941219,0.00013698,2]
[333979079,1722663278961,331.12,0.00027,120]
[333979080,1722663660431,155.21101905,9.999e-05,2]
[333979081,1722663721874,500.0,0.00027,120]
[333979155,1722664238945,-1264.0305213,0.00012623,2]
[333979157,1722664238958,-157.816956,0.00012986,2]
[333979158,1722664238971,-4715.69380032,0.00013534,2]
[333979159,1722664238986,-185.81019743,0.00013539,2]
[333979160,1722664239000,-300.0,0.00013596,2]
[333979161,1722664239018,-1487.53988716,0.00013598,2]
[333979162,1722664239033,-1093.84,0.000136,2]
[333979163,1722664239048,-1487.53988713,0.00013624,2]
[333979164,1722664239061,-620.90474713,0.00013639,2]
[333979165,1722664239072,-1487.53988713,0.00013649,2]
[333979166,1722664239083,-1487.53988713,0.00013675,2]
[333979167,1722664239093,-56752.78476347,0.00013688,2]
[333979168,1722664239107,-15796.33710311,0.00013688,2]
[333979227,1722664240577,-32111.11140542,0.00013688,2]
[333979229,1722664240591,-8917.03663671,0.0001369,5]
[333979232,1722664240604,-17443.372212,0.0001369,2]
[333979234,1722664240616,-596.12,0.00013697,2]
[333979237,1722664240630,-596.12,0.00013697,2]
[333979239,1722664240643,-596.12,0.00013697,2]
[333979241,1722664240654,-500.0,0.00013698,2]
[333979244,1722664240666,-500.0,0.00013698,2]
[333979246,1722664240678,-500.0,0.00013698,2]
[333979248,1722664240689,-502.5143802,0.00013698,2]
[333979250,1722664240702,-412.27994082,0.00013698,2]
[333979253,1722664240716,-505.18016825,0.00013698,2]
[333979256,1722664240730,-542.15017006,0.00013698,2]
[333979258,1722664240743,-503.75348764,0.00013698,2]
[333979260,1722664240756,-500.0,0.00013698,2]
[333979263,1722664240767,-500.0,0.00013698,2]
[333979265,1722664240781,-502.13144408,0.00013698,2]
[333979267,1722664240792,-443.54149847,0.00013698,2]
[333979269,1722664240804,-503.37012291,0.00013698,2]
[333979272,1722664240815,-597.16655605,0.00013698,2]
[333979274,1722664240827,-500.0,0.00013698,2]
[333979276,1722664240840,-503.9952865,0.00013698,2]
[333979278,1722664240851,-500.0,0.00013698,2]
[333979283,1722664240994,-347.36219813,0.00013698,2]
[333979284,1722664241010,-596.70440932,0.00013698,2]
[333979285,1722664241020,-500.0,0.00013698,2]
[333979286,1722664241031,-500.0,0.00013698,2]
[333979287,1722664241041,-500.0,0.00013698,2]
[333979288,1722664241050,-500.0,0.00013698,2]
[333979289,1722664241060,-543.10242154,0.00013698,2]
[333979290,1722664241070,-500.0,0.00013698,2]
[333979291,1722664241080,-500.0,0.00013698,2]
[333979292,1722664241090,-500.0,0.00013698,2]
[333979293,1722664241100,-504.92247799,0.00013698,2]
[333979294,1722664241111,-500.0,0.00013698,2]
[333979295,1722664241124,-500.0,0.00013698,2]
[333979296,1722664241134,-500.0,0.00013698,2]
[333979297,1722664241147,-500.0,0.00013698,2]
[333979298,1722664241157,-500.0,0.00013698,2]
[333979299,1722664241166,-500.0,0.00013698,2]
[333979300,1722664241176,-501.02669427,0.00013698,2]
[333979301,1722664241185,-500.80186033,0.00013698,2]
[333979302,1722664241195,-512.87472869,0.00013698,2]
[333979303,1722664241205,-511.95552001,0.00013698,2]
[333979304,1722664241214,-514.90195416,0.00013698,2]
[333979305,1722664241225,-500.0,0.00013698,2]
[333979306,1722664241235,-504.91443185,0.00013698,2]
[333979307,1722664241245,-500.0,0.00013698,2]
[333979308,1722664241254,-503.88063968,0.00013698,2]
[333979309,1722664241263,-500.0,0.00013698,2]
[333979310,1722664241273,-500.0,0.00013698,2]
[333979311,1722664241283,-515.16777642,0.00013698,2]
[333979312,1722664241293,-500.0,0.00013698,2]
[333979313,1722664241303,-501.04584901,0.00013698,2]
[333979314,1722664241312,-501.81288566,0.00013698,2]
[333979315,1722664241322,-500.0,0.00013698,2]
[333979316,1722664241331,-521.01053025,0.00013698,2]
[333979318,1722664241341,-500.0,0.00013698,2]
[333979320,1722664241351,-502.48619921,0.00013698,2]
[333979322,1722664241363,-501.12752463,0.00013698,2]
[333979323,1722664241373,-500.0,0.00013698,2]
[333979324,1722664241383,-500.71650985,0.00013698,2]
[333979325,1722664241394,-500.0,0.00013698,2]
[333979326,1722664241404,-500.0,0.00013698,2]
[333979327,1722664241415,-500.9424632,0.00013698,2]
[333979328,1722664241427,-500.0,0.00013698,2]
[333979329,1722664241437,-500.0,0.00013698,2]
[333979330,1722664241447,-500.0,0.00013698,2]
[333979331,1722664241457,-500.0,0.00013698,2]
[333979332,1722664241467,-507.4355436,0.00013698,2]
[333979333,1722664241477,-500.0,0.00013698,2]
[333979334,1722664241487,-502.42230152,0.00013698,2]
[333979335,1722664241498,-738.98,0.00013698,2]
[333979336,1722664241508,-202.21917248,0.00013698,2]
[333979337,1722664241519,-500.0,0.00013698,2]
[333979338,1722664241532,-500.0,0.00013698,2]
[333979339,1722664241544,-500.0,0.00013698,2]
[333979340,1722664241554,-503.44149162,0.00013698,2]
[333979341,1722664241566,-500.0,0.00013698,2]
[333979342,1722664241578,-345.54163527,0.00013698,2]
[333979343,1722664241589,-500.0,0.00013698,2]
[333979344,1722664241601,-500.0,0.00013698,2]
[333979345,1722664241613,-500.0,0.00013698,2]
[333979346,1722664241625,-500.0,0.00013698,2]
[333979347,1722664241637,-500.0,0.00013698,2]
[333979348,1722664241648,-502.89026368,0.00013698,2]
[333979349,1722664241658,-500.0,0.00013698,2]
[333979350,1722664241668,-500.0,0.00013698,2]
[333979351,1722664241678,-500.0,0.00013698,2]
[333979352,1722664241691,-506.36099112,0.00013698,2]
[333979353,1722664241701,-500.0,0.00013698,2]
[333979354,1722664241713,-500.0,0.00013698,2]
[333979355,1722664241724,-500.0,0.00013698,2]
[333979356,1722664241735,-500.89833952,0.00013698,2]
[333979357,1722664241746,-500.0,0.00013698,2]
[333979358,1722664241756,-500.0,0.00013698,2]
[333979359,1722664241766,-774.83,0.00013698,2]
[333979360,1722664241777,-500.0,0.00013698,2]
[333979361,1722664241789,-501.07907325,0.00013698,2]
[333979362,1722664241799,-500.0,0.00013698,2]
[333979363,1722664241810,-500.0,0.00013698,2]
[333979364,1722664241821,-500.0,0.00013698,2]
[333979365,1722664241833,-151.0,0.00013698,2]
[333979366,1722664241843,-500.0,0.00013698,2]
[333979367,1722664241853,-1482.26,0.00013698,2]
[333979368,1722664241863,-506.21082323,0.00013698,2]
[333979369,1722664241874,-500.0,0.00013698,2]
[333979370,1722664241885,-500.0,0.00013698,2]
[333979371,1722664241898,-500.0,0.00013698,2]
[333979372,1722664241911,-501.20184379,0.00013698,2]
[333979373,1722664241923,-151.0,0.00013698,2]
[333979374,1722664241935,-500.0,0.00013698,2]
[333979375,1722664241944,-151.0,0.00013698,2]
[333979376,1722664241954,-506.96171622,0.00013698,2]
[333979377,1722664241963,-500.0,0.00013698,2]
[333979378,1722664241974,-500.0,0.00013698,2]
[333979379,1722664241983,-500.0,0.00013698,2]